[Event "Titled Tuesday Blitz May 16 Late 2023"]
[White "Manelyuk, Daniil"]
[Black "Pichot, Alan"]
[WhiteFideId "44173920"]
[BlackFideId "110973"]
[WhiteElo "2259"]
[BlackElo "2573"]
[Result "0-1"]
[Round "03"]
[TimeControl "180+2"]
[Date "2023.05.16"]
[WhiteClock "0:00:23"]
[BlackClock "0:00:09"]

1. e4 {[%clk 0:02:59]}  c5 {[%clk 0:02:59]} 2. Nf3 {[%clk 0:02:59]}  d6 {[%clk 0:03:00]} 3. d4 {[%clk 0:02:59]}  cxd4 {[%clk 0:03:00]} 4. Nxd4 {[%clk 0:03:00]}  Nf6 {[%clk 0:03:01]} 5. Nc3 {[%clk 0:03:00]}  a6 {[%clk 0:03:01]} 6. f3 {[%clk 0:03:00]}  e5 {[%clk 0:02:52]} 7. Nb3 {[%clk 0:03:00]}  Be6 {[%clk 0:02:53]} 8. Be3 {[%clk 0:03:00]}  h5 {[%clk 0:02:51]} 9. Qd2 {[%clk 0:03:00]}  Nbd7 {[%clk 0:02:52]} 10. Nd5 {[%clk 0:03:00]}  Bxd5 {[%clk 0:02:51]} 11. exd5 {[%clk 0:03:01]}  Qc7 {[%clk 0:02:52]} 12. Na5 {[%clk 0:02:55]}  g6 {[%clk 0:02:47]} 13. Be2 {[%clk 0:02:53]}  Bg7 {[%clk 0:02:46]} 14. c4 {[%clk 0:02:53]}  O-O {[%clk 0:02:45]} 15. Rc1 {[%clk 0:02:51]}  Rfe8 {[%clk 0:02:39]} 16. b4 {[%clk 0:02:46]}  b6 {[%clk 0:02:01]} 17. Nc6 {[%clk 0:02:44]}  Nh7 {[%clk 0:02:02]} 18. O-O {[%clk 0:02:42]}  f5 {[%clk 0:02:01]} 19. f4 {[%clk 0:02:36]}  exf4 {[%clk 0:01:54]} 20. Bxf4 {[%clk 0:02:35]}  Ne5 {[%clk 0:01:55]} 21. c5 {[%clk 0:02:07]}  bxc5 {[%clk 0:01:51]} 22. bxc5 {[%clk 0:02:07]}  dxc5 {[%clk 0:01:33]} 23. Nxe5 {[%clk 0:01:59]}  Bxe5 {[%clk 0:01:32]} 24. d6 {[%clk 0:01:58]}  Qg7 {[%clk 0:01:25]} 25. d7 {[%clk 0:01:40]}  Bd4+ {[%clk 0:01:21]} 26. Kh1 {[%clk 0:01:40]}  Qxd7 {[%clk 0:01:19]} 27. Rxc5 {[%clk 0:01:23]}  Rxe2 {[%clk 0:00:53]} 28. Qxe2 {[%clk 0:01:24]}  Bxc5 {[%clk 0:00:54]} 29. Qc4+ {[%clk 0:01:24]}  Qf7 {[%clk 0:00:54]} 30. Qxc5 {[%clk 0:01:25]}  Nf6 {[%clk 0:00:55]} 31. h3 {[%clk 0:01:17]}  Re8 {[%clk 0:00:52]} 32. Rd1 {[%clk 0:01:13]}  Ne4 {[%clk 0:00:51]} 33. Qb6 {[%clk 0:01:13]}  Qe6 {[%clk 0:00:46]} 34. Qa7 {[%clk 0:01:06]}  Re7 {[%clk 0:00:09]} 35. Rd8+ {[%clk 0:01:04]}  Kf7 {[%clk 0:00:09]} 36. Qb8 {[%clk 0:00:50]}  Nf6 {[%clk 0:00:07]} 37. Rd6 {[%clk 0:00:24]}  Qe1+ {[%clk 0:00:06]} 38. Kh2 {[%clk 0:00:24]}  Ng4+ {[%clk 0:00:07]} 39. hxg4 {[%clk 0:00:23]}  Qh4+ {[%clk 0:00:08]} 40. Kg1 {[%clk 0:00:23]}  Re1# {[%clk 0:00:09]} 0-1


[Site "https://www.chess.com"]

[Event "Titled Tuesday Blitz May 16 Late 2023"]
[White "benny_aizenberg"]
[Black "Durarbayli, Vasif"]
[BlackFideId "13402935"]
[WhiteElo "2684"]
[BlackElo "2551"]
[Result "0-1"]
[Round "03"]
[TimeControl "180+2"]
[Date "2023.05.16"]
[WhiteClock "0:00:07"]
[BlackClock "0:00:09"]

1. f4 {[%clk 0:02:58]}  d5 {[%clk 0:02:53]} 2. Nf3 {[%clk 0:02:59]}  Nf6 {[%clk 0:02:54]} 3. g3 {[%clk 0:02:59]}  g6 {[%clk 0:02:54]} 4. Bg2 {[%clk 0:03:00]}  Bg7 {[%clk 0:02:55]} 5. O-O {[%clk 0:03:00]}  O-O {[%clk 0:02:56]} 6. d3 {[%clk 0:03:00]}  Nc6 {[%clk 0:02:55]} 7. c3 {[%clk 0:02:58]}  Qd6 {[%clk 0:02:47]} 8. Nbd2 {[%clk 0:02:56]}  e5 {[%clk 0:02:42]} 9. fxe5 {[%clk 0:02:55]}  Nxe5 {[%clk 0:02:43]} 10. Nxe5 {[%clk 0:02:51]}  Qxe5 {[%clk 0:02:44]} 11. e4 {[%clk 0:02:52]}  Bg4 {[%clk 0:02:28]} 12. Qe1 {[%clk 0:02:41]}  dxe4 {[%clk 0:02:15]} 13. Nxe4 {[%clk 0:02:41]}  Nxe4 {[%clk 0:02:10]} 14. Qxe4 {[%clk 0:02:40]}  Qxe4 {[%clk 0:02:01]} 15. Bxe4 {[%clk 0:02:40]}  c6 {[%clk 0:02:02]} 16. Bg5 {[%clk 0:02:38]}  Rfe8 {[%clk 0:01:56]} 17. Rae1 {[%clk 0:02:37]}  Be6 {[%clk 0:01:35]} 18. a3 {[%clk 0:02:33]}  f5 {[%clk 0:01:29]} 19. Bg2 {[%clk 0:02:33]}  h6 {[%clk 0:01:28]} 20. Bc1 {[%clk 0:02:29]}  Rad8 {[%clk 0:01:28]} 21. d4 {[%clk 0:02:29]}  Bc4 {[%clk 0:01:26]} 22. Rxe8+ {[%clk 0:02:25]}  Rxe8 {[%clk 0:01:27]} 23. Rd1 {[%clk 0:02:25]}  Bb3 {[%clk 0:01:25]} 24. Rf1 {[%clk 0:02:23]}  Bc4 {[%clk 0:01:15]} 25. Rd1 {[%clk 0:02:22]}  Kf7 {[%clk 0:01:16]} 26. Bf1 {[%clk 0:02:17]}  Bb3 {[%clk 0:01:16]} 27. Rd3 {[%clk 0:02:15]}  Re1 {[%clk 0:01:11]} 28. Bf4 {[%clk 0:01:25]}  Rb1 {[%clk 0:00:59]} 29. Rd2 {[%clk 0:01:24]}  Bc4 {[%clk 0:00:56]} 30. Rf2 {[%clk 0:01:24]}  Bxf1 {[%clk 0:00:56]} 31. Rxf1 {[%clk 0:01:24]}  Rxb2 {[%clk 0:00:57]} 32. Bd6 {[%clk 0:01:18]}  Rc2 {[%clk 0:00:50]} 33. Bb4 {[%clk 0:01:17]}  h5 {[%clk 0:00:50]} 34. Re1 {[%clk 0:01:17]}  Bf6 {[%clk 0:00:43]} 35. a4 {[%clk 0:01:15]}  h4 {[%clk 0:00:37]} 36. a5 {[%clk 0:01:14]}  h3 {[%clk 0:00:36]} 37. Rb1 {[%clk 0:01:08]}  b5 {[%clk 0:00:27]} 38. axb6 {[%clk 0:00:59]}  axb6 {[%clk 0:00:27]} 39. Ra1 {[%clk 0:01:00]}  Bg5 {[%clk 0:00:25]} 40. Re1 {[%clk 0:00:48]}  Bd2 {[%clk 0:00:18]} 41. Re2 {[%clk 0:00:47]}  Rc1+ {[%clk 0:00:18]} 42. Kf2 {[%clk 0:00:46]}  Bxc3 {[%clk 0:00:19]} 43. Bxc3 {[%clk 0:00:37]}  Rxc3 {[%clk 0:00:20]} 44. Rb2 {[%clk 0:00:37]}  b5 {[%clk 0:00:19]} 45. d5 {[%clk 0:00:38]}  cxd5 {[%clk 0:00:19]} 46. Rxb5 {[%clk 0:00:38]}  d4 {[%clk 0:00:20]} 47. Rd5 {[%clk 0:00:37]}  Rc2+ {[%clk 0:00:20]} 48. Kf3 {[%clk 0:00:26]}  Rxh2 {[%clk 0:00:19]} 49. g4 {[%clk 0:00:21]}  Rd2 {[%clk 0:00:18]} 50. gxf5 {[%clk 0:00:21]}  h2 {[%clk 0:00:12]} 51. Rd7+ {[%clk 0:00:20]}  Kf6 {[%clk 0:00:12]} 52. Rh7 {[%clk 0:00:20]}  Kxf5 {[%clk 0:00:10]} 53. Rf7+ {[%clk 0:00:18]}  Ke6 {[%clk 0:00:10]} 54. Rh7 {[%clk 0:00:19]}  Kf6 {[%clk 0:00:09]} 55. Kf4 {[%clk 0:00:17]}  Re2 {[%clk 0:00:09]} 56. Kf3 {[%clk 0:00:14]}  d3 {[%clk 0:00:10]} 57. Rh8 {[%clk 0:00:13]}  Kg7 {[%clk 0:00:08]} 58. Rh4 {[%clk 0:00:13]}  g5 {[%clk 0:00:09]} 59. Rh5 {[%clk 0:00:13]}  Kg6 {[%clk 0:00:09]} 60. Rh8 {[%clk 0:00:13]}  g4+ {[%clk 0:00:10]} 61. Kg3 {[%clk 0:00:10]}  d2 {[%clk 0:00:10]} 62. Rd8 {[%clk 0:00:08]}  h1=Q {[%clk 0:00:09]} 63. Rd6+ {[%clk 0:00:08]}  Kf7 {[%clk 0:00:09]} 64. Rd7+ {[%clk 0:00:07]}  Ke8 {[%clk 0:00:09]} 0-1


[Site "https://www.chess.com"]

[Event "Titled Tuesday Blitz May 16 Late 2023"]
[White "Schekachikhin, Maksim"]
[Black "Donchenko, Alexander"]
[WhiteFideId "24177830"]
[BlackFideId "24603295"]
[WhiteElo "2272"]
[BlackElo "2554"]
[Result "0-1"]
[Round "03"]
[TimeControl "180+2"]
[Date "2023.05.16"]
[WhiteClock "0:00:05"]
[BlackClock "0:00:19"]

1. d4 {[%clk 0:02:57]}  Nf6 {[%clk 0:02:59]} 2. c4 {[%clk 0:02:56]}  e6 {[%clk 0:03:00]} 3. Nc3 {[%clk 0:02:57]}  Bb4 {[%clk 0:02:59]} 4. e3 {[%clk 0:02:57]}  c5 {[%clk 0:02:59]} 5. Bd3 {[%clk 0:02:56]}  Nc6 {[%clk 0:02:59]} 6. Ne2 {[%clk 0:02:54]}  d5 {[%clk 0:02:57]} 7. cxd5 {[%clk 0:02:54]}  Nxd5 {[%clk 0:02:57]} 8. O-O {[%clk 0:02:53]}  cxd4 {[%clk 0:02:53]} 9. exd4 {[%clk 0:02:54]}  O-O {[%clk 0:02:50]} 10. a3 {[%clk 0:02:54]}  Be7 {[%clk 0:02:49]} 11. Bc2 {[%clk 0:02:52]}  Nf6 {[%clk 0:02:45]} 12. Qd3 {[%clk 0:02:50]}  b6 {[%clk 0:02:44]} 13. Bg5 {[%clk 0:02:48]}  g6 {[%clk 0:02:44]} 14. Rad1 {[%clk 0:02:45]}  Bb7 {[%clk 0:02:44]} 15. Rfe1 {[%clk 0:02:43]}  Nd5 {[%clk 0:02:37]} 16. Bh6 {[%clk 0:02:41]}  Re8 {[%clk 0:02:37]} 17. Nf4 {[%clk 0:02:29]}  Nxc3 {[%clk 0:02:16]} 18. Qxc3 {[%clk 0:02:27]}  Bf6 {[%clk 0:02:14]} 19. Ba4 {[%clk 0:02:23]}  Rc8 {[%clk 0:02:06]} 20. Bxc6 {[%clk 0:02:13]}  Bxc6 {[%clk 0:02:03]} 21. Qe3 {[%clk 0:02:05]}  Ba4 {[%clk 0:02:02]} 22. Rd2 {[%clk 0:02:02]}  Qd6 {[%clk 0:01:55]} 23. Ne2 {[%clk 0:01:59]}  Red8 {[%clk 0:01:37]} 24. Bf4 {[%clk 0:01:54]}  Qf8 {[%clk 0:01:30]} 25. Nc3 {[%clk 0:01:53]}  Bc6 {[%clk 0:01:30]} 26. Be5 {[%clk 0:01:52]}  Qg7 {[%clk 0:01:22]} 27. h4 {[%clk 0:01:43]}  Rd7 {[%clk 0:01:18]} 28. Qf4 {[%clk 0:01:21]}  Bxe5 {[%clk 0:01:16]} 29. dxe5 {[%clk 0:01:22]}  Rxd2 {[%clk 0:01:10]} 30. Qxd2 {[%clk 0:01:21]}  Qf8 {[%clk 0:01:11]} 31. Rd1 {[%clk 0:01:19]}  Qe7 {[%clk 0:01:09]} 32. Qf4 {[%clk 0:01:12]}  Rd8 {[%clk 0:01:08]} 33. Rd4 {[%clk 0:01:11]}  h5 {[%clk 0:01:02]} 34. Qd2 {[%clk 0:01:07]}  Rxd4 {[%clk 0:01:01]} 35. Qxd4 {[%clk 0:01:08]}  Kf8 {[%clk 0:01:01]} 36. f3 {[%clk 0:00:58]}  Kg7 {[%clk 0:00:55]} 37. Kf2 {[%clk 0:00:56]}  g5 {[%clk 0:00:54]} 38. hxg5 {[%clk 0:00:38]}  Qxg5 {[%clk 0:00:55]} 39. Ne2 {[%clk 0:00:37]}  h4 {[%clk 0:00:50]} 40. Qd6 {[%clk 0:00:36]}  Bb5 {[%clk 0:00:47]} 41. Nd4 {[%clk 0:00:29]}  Qg3+ {[%clk 0:00:46]} 42. Kg1 {[%clk 0:00:28]}  h3 {[%clk 0:00:32]} 43. Nxe6+ {[%clk 0:00:28]}  Kh7 {[%clk 0:00:28]} 44. Nf8+ {[%clk 0:00:24]}  Kg8 {[%clk 0:00:28]} 45. Qd2 {[%clk 0:00:13]}  Kxf8 {[%clk 0:00:17]} 46. Qd8+ {[%clk 0:00:13]}  Kg7 {[%clk 0:00:18]} 47. Qf6+ {[%clk 0:00:05]}  Kg8 {[%clk 0:00:19]} 0-1


[Site "https://www.chess.com"]

[Event "Titled Tuesday Blitz May 16 Late 2023"]
[White "Xiong, Jeffery"]
[Black "Domingo Nunez, Ruben"]
[WhiteFideId "2047640"]
[BlackFideId "22245570"]
[WhiteElo "2726"]
[BlackElo "2404"]
[Result "1-0"]
[Round "03"]
[TimeControl "180+2"]
[Date "2023.05.16"]
[WhiteClock "0:02:08"]
[BlackClock "0:00:21"]

1. e4 {[%clk 0:03:00]}  g6 {[%clk 0:02:54]} 2. d4 {[%clk 0:03:00]}  Bg7 {[%clk 0:02:55]} 3. Nf3 {[%clk 0:03:01]}  c6 {[%clk 0:02:55]} 4. c4 {[%clk 0:02:59]}  d5 {[%clk 0:02:56]} 5. cxd5 {[%clk 0:03:00]}  cxd5 {[%clk 0:02:56]} 6. e5 {[%clk 0:03:01]}  Nc6 {[%clk 0:02:55]} 7. Bb5 {[%clk 0:03:01]}  Bg4 {[%clk 0:02:54]} 8. Bxc6+ {[%clk 0:03:01]}  bxc6 {[%clk 0:02:54]} 9. Nbd2 {[%clk 0:03:02]}  f6 {[%clk 0:02:54]} 10. h3 {[%clk 0:03:02]}  Bf5 {[%clk 0:02:54]} 11. O-O {[%clk 0:03:02]}  Nh6 {[%clk 0:02:52]} 12. Re1 {[%clk 0:03:02]}  O-O {[%clk 0:02:49]} 13. Nb3 {[%clk 0:03:02]}  Nf7 {[%clk 0:02:40]} 14. e6 {[%clk 0:03:02]}  Nd6 {[%clk 0:02:40]} 15. Nc5 {[%clk 0:03:01]}  g5 {[%clk 0:02:21]} 16. h4 {[%clk 0:02:58]}  h6 {[%clk 0:02:21]} 17. Nh2 {[%clk 0:02:58]}  Ne4 {[%clk 0:02:19]} 18. Qf3 {[%clk 0:02:47]}  Bg6 {[%clk 0:02:13]} 19. Nd7 {[%clk 0:02:36]}  Re8 {[%clk 0:02:14]} 20. hxg5 {[%clk 0:02:33]}  hxg5 {[%clk 0:01:53]} 21. Nf1 {[%clk 0:02:32]}  Qa5 {[%clk 0:01:44]} 22. Be3 {[%clk 0:02:29]}  Qb4 {[%clk 0:01:43]} 23. b3 {[%clk 0:02:28]}  Qd6 {[%clk 0:01:43]} 24. Qh3 {[%clk 0:02:24]}  f5 {[%clk 0:01:04]} 25. f3 {[%clk 0:02:24]}  f4 {[%clk 0:01:04]} 26. fxe4 {[%clk 0:02:24]}  dxe4 {[%clk 0:01:05]} 27. Bf2 {[%clk 0:02:17]}  e3 {[%clk 0:01:05]} 28. Nxe3 {[%clk 0:02:17]}  fxe3 {[%clk 0:01:04]} 29. Qxe3 {[%clk 0:02:18]}  Bf6 {[%clk 0:00:45]} 30. Rac1 {[%clk 0:02:16]}  Rad8 {[%clk 0:00:33]} 31. Rc5 {[%clk 0:02:16]}  Kg7 {[%clk 0:00:29]} 32. Rd1 {[%clk 0:02:11]}  Bh5 {[%clk 0:00:27]} 33. Bg3 {[%clk 0:02:06]}  Bxd1 {[%clk 0:00:23]} 34. Bxd6 {[%clk 0:02:06]}  exd6 {[%clk 0:00:24]} 35. Rxg5+ {[%clk 0:02:06]}  Bxg5 {[%clk 0:00:21]} 36. Qxg5+ {[%clk 0:02:07]}  Kh8 {[%clk 0:00:22]} 37. Qh6+ {[%clk 0:02:07]}  Kg8 {[%clk 0:00:21]} 38. Nf6# {[%clk 0:02:08]} 1-0


[Site "https://www.chess.com"]

[Event "Titled Tuesday Blitz May 16 Late 2023"]
[White "Sviridov, Valery"]
[Black "Kourkoulos-Arditis, Stamatis"]
[WhiteFideId "4120680"]
[BlackFideId "4221990"]
[WhiteElo "2457"]
[BlackElo "2400"]
[Result "1-0"]
[Round "03"]
[TimeControl "180+2"]
[Date "2023.05.16"]
[WhiteClock "0:01:34"]
[BlackClock "0:00:09"]

1. d4 {[%clk 0:03:00]}  c5 {[%clk 0:02:59]} 2. d5 {[%clk 0:03:00]}  Nf6 {[%clk 0:03:00]} 3. c4 {[%clk 0:03:00]}  d6 {[%clk 0:02:59]} 4. Nc3 {[%clk 0:03:01]}  g6 {[%clk 0:03:00]} 5. Nf3 {[%clk 0:03:01]}  Bg7 {[%clk 0:03:00]} 6. e4 {[%clk 0:03:02]}  O-O {[%clk 0:03:01]} 7. h3 {[%clk 0:03:01]}  e6 {[%clk 0:03:01]} 8. Bd3 {[%clk 0:03:01]}  exd5 {[%clk 0:03:00]} 9. cxd5 {[%clk 0:03:02]}  Nh5 {[%clk 0:02:54]} 10. O-O {[%clk 0:03:00]}  Nd7 {[%clk 0:02:54]} 11. Bg5 {[%clk 0:02:39]}  Bf6 {[%clk 0:02:53]} 12. Be3 {[%clk 0:02:36]}  a6 {[%clk 0:02:50]} 13. a4 {[%clk 0:02:36]}  Ne5 {[%clk 0:02:46]} 14. Nxe5 {[%clk 0:02:35]}  Bxe5 {[%clk 0:02:47]} 15. f4 {[%clk 0:02:35]}  Bxc3 {[%clk 0:02:33]} 16. bxc3 {[%clk 0:02:35]}  Qe7 {[%clk 0:01:55]} 17. Qf3 {[%clk 0:02:31]}  f5 {[%clk 0:01:46]} 18. exf5 {[%clk 0:02:27]}  Bxf5 {[%clk 0:01:46]} 19. Bxf5 {[%clk 0:02:27]}  gxf5 {[%clk 0:01:46]} 20. Rae1 {[%clk 0:02:19]}  Qf7 {[%clk 0:01:44]} 21. c4 {[%clk 0:02:14]}  Nf6 {[%clk 0:01:32]} 22. Bc1 {[%clk 0:02:14]}  Ne4 {[%clk 0:01:24]} 23. Bb2 {[%clk 0:02:14]}  Rab8 {[%clk 0:01:16]} 24. g4 {[%clk 0:02:10]}  b5 {[%clk 0:01:12]} 25. gxf5 {[%clk 0:02:09]}  Nf6 {[%clk 0:01:00]} 26. Re6 {[%clk 0:02:08]}  Qg7+ {[%clk 0:00:55]} 27. Kh1 {[%clk 0:02:07]}  Qh6 {[%clk 0:00:42]} 28. Rg1+ {[%clk 0:01:59]}  Kh8 {[%clk 0:00:42]} 29. Bxf6+ {[%clk 0:01:39]}  Rxf6 {[%clk 0:00:42]} 30. Qc3 {[%clk 0:01:39]}  Rf8 {[%clk 0:00:38]} 31. axb5 {[%clk 0:01:40]}  axb5 {[%clk 0:00:38]} 32. cxb5 {[%clk 0:01:40]}  Rf7 {[%clk 0:00:10]} 33. b6 {[%clk 0:01:38]}  Rg7 {[%clk 0:00:09]} 34. Rxg7 {[%clk 0:01:34]} 1-0


[Site "https://www.chess.com"]

[Event "Titled Tuesday Blitz May 16 Late 2023"]
[White "MKlose11"]
[Black "Kravtsiv, Martyn"]
[BlackFideId "14113147"]
[WhiteElo "2659"]
[BlackElo "2695"]
[Result "1-0"]
[Round "03"]
[TimeControl "180+2"]
[Date "2023.05.16"]
[WhiteClock "0:00:45"]
[BlackClock "0:00:00"]

1. e4 {[%clk 0:03:00]}  e5 {[%clk 0:02:59]} 2. Nf3 {[%clk 0:03:00]}  Nc6 {[%clk 0:02:59]} 3. d4 {[%clk 0:03:01]}  exd4 {[%clk 0:02:59]} 4. Bc4 {[%clk 0:03:01]}  Nf6 {[%clk 0:02:56]} 5. O-O {[%clk 0:03:01]}  Nxe4 {[%clk 0:02:54]} 6. Re1 {[%clk 0:03:02]}  d5 {[%clk 0:02:54]} 7. Bxd5 {[%clk 0:03:02]}  Qxd5 {[%clk 0:02:55]} 8. Nc3 {[%clk 0:03:03]}  Qh5 {[%clk 0:02:49]} 9. Nxe4 {[%clk 0:03:03]}  Be6 {[%clk 0:02:48]} 10. Bg5 {[%clk 0:03:01]}  Bd6 {[%clk 0:02:44]} 11. Nxd6+ {[%clk 0:03:01]}  cxd6 {[%clk 0:02:43]} 12. Bf4 {[%clk 0:03:02]}  Qd5 {[%clk 0:02:38]} 13. c3 {[%clk 0:02:59]}  d3 {[%clk 0:02:32]} 14. Re3 {[%clk 0:02:48]}  Qf5 {[%clk 0:02:32]} 15. Bg3 {[%clk 0:02:38]}  O-O {[%clk 0:02:29]} 16. Qxd3 {[%clk 0:02:36]}  Qxd3 {[%clk 0:02:28]} 17. Rxd3 {[%clk 0:02:37]}  d5 {[%clk 0:02:28]} 18. Re1 {[%clk 0:02:34]}  h6 {[%clk 0:02:27]} 19. Nd4 {[%clk 0:02:28]}  Nxd4 {[%clk 0:02:24]} 20. Rxd4 {[%clk 0:02:29]}  Rfc8 {[%clk 0:02:23]} 21. f3 {[%clk 0:02:27]}  Rc6 {[%clk 0:02:23]} 22. Kf2 {[%clk 0:02:18]}  Rac8 {[%clk 0:02:22]} 23. Rd2 {[%clk 0:02:15]}  Ra6 {[%clk 0:02:21]} 24. a3 {[%clk 0:02:15]}  Rc4 {[%clk 0:02:21]} 25. Be5 {[%clk 0:02:14]}  b5 {[%clk 0:02:08]} 26. Bd4 {[%clk 0:02:13]}  Rc7 {[%clk 0:02:08]} 27. h4 {[%clk 0:02:01]}  Rac6 {[%clk 0:02:07]} 28. h5 {[%clk 0:02:02]}  a5 {[%clk 0:02:07]} 29. g4 {[%clk 0:02:01]}  Rb7 {[%clk 0:01:58]} 30. Rg1 {[%clk 0:01:58]}  Kh7 {[%clk 0:01:51]} 31. g5 {[%clk 0:01:54]}  hxg5 {[%clk 0:01:50]} 32. Rxg5 {[%clk 0:01:54]}  f6 {[%clk 0:01:50]} 33. Rg3 {[%clk 0:01:50]}  b4 {[%clk 0:01:49]} 34. axb4 {[%clk 0:01:46]}  axb4 {[%clk 0:01:49]} 35. Ke3 {[%clk 0:01:44]}  Bf7 {[%clk 0:01:41]} 36. Rh2 {[%clk 0:01:39]}  b3 {[%clk 0:01:31]} 37. Rg4 {[%clk 0:01:26]}  Re7+ {[%clk 0:01:28]} 38. Kd2 {[%clk 0:01:19]}  Ra6 {[%clk 0:01:23]} 39. Rf4 {[%clk 0:01:17]}  Ra2 {[%clk 0:01:18]} 40. c4 {[%clk 0:01:16]}  dxc4 {[%clk 0:01:04]} 41. h6 {[%clk 0:01:15]}  gxh6 {[%clk 0:00:44]} 42. Rxf6 {[%clk 0:01:10]}  Bg6 {[%clk 0:00:45]} 43. Rg2 {[%clk 0:01:03]}  c3+ {[%clk 0:00:15]} 44. Kxc3 {[%clk 0:00:51]}  Bc2 {[%clk 0:00:04]} 45. Rf8 {[%clk 0:00:46]}  Rc7+ {[%clk 0:00:00]} 46. Kd2 {[%clk 0:00:45]} 1-0


[Site "https://www.chess.com"]

[Event "Titled Tuesday Blitz May 16 Late 2023"]
[White "Pakleza, Zbigniew"]
[Black "Maltsevskaya, Aleksandra"]
[WhiteFideId "1119290"]
[BlackFideId "24174041"]
[WhiteElo "2410"]
[BlackElo "2302"]
[Result "1-0"]
[Round "03"]
[TimeControl "180+2"]
[Date "2023.05.16"]
[WhiteClock "0:00:02"]
[BlackClock "0:00:00"]

1. d4 {[%clk 0:03:00]}  Nf6 {[%clk 0:02:58]} 2. Nf3 {[%clk 0:03:01]}  b6 {[%clk 0:02:57]} 3. Bf4 {[%clk 0:03:01]}  Bb7 {[%clk 0:02:58]} 4. e3 {[%clk 0:03:02]}  g6 {[%clk 0:02:55]} 5. h3 {[%clk 0:03:02]}  Bg7 {[%clk 0:02:55]} 6. Be2 {[%clk 0:03:02]}  O-O {[%clk 0:02:56]} 7. O-O {[%clk 0:03:03]}  d6 {[%clk 0:02:57]} 8. Nbd2 {[%clk 0:03:04]}  Nbd7 {[%clk 0:02:57]} 9. Bh2 {[%clk 0:03:03]}  Ne4 {[%clk 0:02:55]} 10. a4 {[%clk 0:03:00]}  a6 {[%clk 0:02:55]} 11. c3 {[%clk 0:02:56]}  e5 {[%clk 0:02:50]} 12. Qb3 {[%clk 0:02:52]}  Qe7 {[%clk 0:02:35]} 13. Rfd1 {[%clk 0:02:47]}  Nxd2 {[%clk 0:02:33]} 14. Rxd2 {[%clk 0:02:48]}  e4 {[%clk 0:02:22]} 15. Ne1 {[%clk 0:02:48]}  Kh8 {[%clk 0:02:22]} 16. a5 {[%clk 0:02:46]}  f5 {[%clk 0:02:21]} 17. axb6 {[%clk 0:02:44]}  Nxb6 {[%clk 0:02:16]} 18. c4 {[%clk 0:02:34]}  Rab8 {[%clk 0:02:10]} 19. Qa3 {[%clk 0:02:15]}  Nd7 {[%clk 0:01:40]} 20. Nc2 {[%clk 0:02:02]}  g5 {[%clk 0:01:37]} 21. d5 {[%clk 0:01:31]}  f4 {[%clk 0:00:51]} 22. Bf1 {[%clk 0:01:23]}  Rf7 {[%clk 0:00:49]} 23. Nd4 {[%clk 0:01:21]}  Be5 {[%clk 0:00:47]} 24. Re1 {[%clk 0:01:03]}  Rg8 {[%clk 0:00:46]} 25. Ne6 {[%clk 0:00:53]}  f3 {[%clk 0:00:36]} 26. Bxe5+ {[%clk 0:00:43]}  Nxe5 {[%clk 0:00:36]} 27. g3 {[%clk 0:00:44]}  Bc8 {[%clk 0:00:37]} 28. c5 {[%clk 0:00:29]}  h5 {[%clk 0:00:23]} 29. cxd6 {[%clk 0:00:24]}  cxd6 {[%clk 0:00:24]} 30. Rd4 {[%clk 0:00:23]}  h4 {[%clk 0:00:22]} 31. g4 {[%clk 0:00:22]}  Bxe6 {[%clk 0:00:19]} 32. dxe6 {[%clk 0:00:23]}  Qxe6 {[%clk 0:00:20]} 33. Rxe4 {[%clk 0:00:20]}  Rc8 {[%clk 0:00:19]} 34. Rd1 {[%clk 0:00:17]}  Rc6 {[%clk 0:00:18]} 35. Red4 {[%clk 0:00:16]}  Rd7 {[%clk 0:00:17]} 36. Rd5 {[%clk 0:00:07]}  Kg7 {[%clk 0:00:11]} 37. Qa4 {[%clk 0:00:07]}  Rb6 {[%clk 0:00:08]} 38. Qd4 {[%clk 0:00:04]}  Rbb7 {[%clk 0:00:05]} 39. Bxa6 {[%clk 0:00:04]}  Rbc7 {[%clk 0:00:05]} 40. Bb5 {[%clk 0:00:04]}  Re7 {[%clk 0:00:03]} 41. Rxd6 {[%clk 0:00:04]}  Qf7 {[%clk 0:00:03]} 42. Bf1 {[%clk 0:00:02]}  Rc2 {[%clk 0:00:03]} 43. Rd5 {[%clk 0:00:02]}  Qf6 {[%clk 0:00:00]} 44. b4 {[%clk 0:00:02]} 1-0


[Site "https://www.chess.com"]

[Event "Titled Tuesday Blitz May 16 Late 2023"]
[White "Makridis, Dimitrios"]
[Black "Domingo Nunez, Alejandro"]
[WhiteFideId "25864475"]
[BlackFideId "22245561"]
[WhiteElo "2277"]
[BlackElo "2291"]
[Result "1-0"]
[Round "03"]
[TimeControl "180+2"]
[Date "2023.05.16"]
[WhiteClock "0:01:28"]
[BlackClock "0:00:01"]

1. e4 {[%clk 0:03:00]}  g6 {[%clk 0:02:58]} 2. h4 {[%clk 0:03:00]}  Bg7 {[%clk 0:02:54]} 3. h5 {[%clk 0:02:59]}  c5 {[%clk 0:02:55]} 4. Nc3 {[%clk 0:02:56]}  Nc6 {[%clk 0:02:54]} 5. d3 {[%clk 0:02:57]}  e6 {[%clk 0:02:54]} 6. Nge2 {[%clk 0:02:56]}  Nge7 {[%clk 0:02:53]} 7. Bg5 {[%clk 0:02:55]}  h6 {[%clk 0:02:46]} 8. Be3 {[%clk 0:02:52]}  Nd4 {[%clk 0:02:16]} 9. hxg6 {[%clk 0:02:50]}  fxg6 {[%clk 0:02:15]} 10. Qd2 {[%clk 0:02:40]}  b5 {[%clk 0:01:42]} 11. Bxh6 {[%clk 0:02:31]}  Nxc2+ {[%clk 0:01:34]} 12. Qxc2 {[%clk 0:02:27]}  Rxh6 {[%clk 0:01:34]} 13. Rxh6 {[%clk 0:02:26]}  Bxh6 {[%clk 0:01:35]} 14. Nxb5 {[%clk 0:02:27]}  Qa5+ {[%clk 0:01:36]} 15. Nbc3 {[%clk 0:02:26]}  d5 {[%clk 0:01:37]} 16. Qa4+ {[%clk 0:02:20]}  Qxa4 {[%clk 0:01:33]} 17. Nxa4 {[%clk 0:02:21]}  c4 {[%clk 0:01:28]} 18. dxc4 {[%clk 0:02:18]}  dxe4 {[%clk 0:01:22]} 19. Nc5 {[%clk 0:02:17]}  e3 {[%clk 0:01:22]} 20. fxe3 {[%clk 0:02:15]}  Bxe3 {[%clk 0:01:21]} 21. Ne4 {[%clk 0:02:15]}  Nf5 {[%clk 0:01:19]} 22. g4 {[%clk 0:02:00]}  Bb7 {[%clk 0:00:42]} 23. Bg2 {[%clk 0:01:57]}  O-O-O {[%clk 0:00:36]} 24. gxf5 {[%clk 0:01:51]}  gxf5 {[%clk 0:00:36]} 25. N2c3 {[%clk 0:01:40]}  fxe4 {[%clk 0:00:24]} 26. Bxe4 {[%clk 0:01:41]}  Bd2+ {[%clk 0:00:22]} 27. Ke2 {[%clk 0:01:38]}  Bxc3 {[%clk 0:00:22]} 28. Bxb7+ {[%clk 0:01:39]}  Kxb7 {[%clk 0:00:23]} 29. bxc3 {[%clk 0:01:39]}  Kc6 {[%clk 0:00:23]} 30. Rb1 {[%clk 0:01:31]}  Kc5 {[%clk 0:00:22]} 31. Rb4 {[%clk 0:01:32]}  Rd6 {[%clk 0:00:20]} 32. Ke3 {[%clk 0:01:30]}  a5 {[%clk 0:00:14]} 33. Ra4 {[%clk 0:01:30]}  Ra6 {[%clk 0:00:14]} 34. Ke4 {[%clk 0:01:29]}  Ra8 {[%clk 0:00:13]} 35. Ke5 {[%clk 0:01:29]}  Ra6 {[%clk 0:00:14]} 36. a3 {[%clk 0:01:29]}  Ra8 {[%clk 0:00:05]} 37. Kxe6 {[%clk 0:01:29]}  Ra6+ {[%clk 0:00:06]} 38. Kd7 {[%clk 0:01:29]}  Ra7+ {[%clk 0:00:05]} 39. Kc8 {[%clk 0:01:29]}  Kc6 {[%clk 0:00:04]} 40. Kb8 {[%clk 0:01:28]}  Kb6 {[%clk 0:00:01]} 41. c5+ {[%clk 0:01:28]} 1-0


[Site "https://www.chess.com"]